Cogmind - Beta 13 @@@ ROGUE MODE // 2024.06.18 @ 12:35:01 Player: MarKhan Result: Destroyed by Y-64 Sentinel with Wave Gun Performance ------------- Evolutions (6) 3000 Regions Visited (22) 4400 Robots Destroyed (158) 790 Value Destroyed (4805) 4805 Prototype IDs (29) 580 Alien Tech Used (0) 0 Bonus (2967) 2967 TOTAL SCORE: 16542 Bonus ------- High Alert Combat Kills 540 Follower Combat Kills 1078 Met Data Miner 300 Met Imprinter 300 Met Warlord at Base 500 MAIN.C Attacked Warlord 500 Friendly Fire -251 Cogmind --------- Core Integrity 0/1150 Matter 151/300 Energy 100/100 System Corruption 21% Temperature Cool (10) Movement Flying (40) Location -4/Extension Parts ------- > --- POWER (2) -------- (None) > --- PROPULSION (6) --- Field Propulsion Array > --- UTILITY (7) ------ Enhanced Optical Array Advanced Signal Interpreter Advanced Terrain Scan Processor Seismic Detector System Shield > --- WEAPON (4) ------- CR-A16's Pointy Stick > --- INVENTORY (5) ---- Energy Well (350) Improved Phase Shifter Long-range Tractor Beam Gamma Rifle Makeshift Hammer Peak State ------------ > --- POWER ------------ Micro Fission Core Improved Fusion Compressor > --- PROPULSION ------- Nuclear Pulse Thruster Biomechanical Wings Impulse Thruster Field Propulsion Array Electron Diverter > --- UTILITY ---------- Medium Storage Unit Enhanced Optical Array Advanced Signal Interpreter Seismic Detector 0b10 Decoder Chip [Generic] Advanced Reaction Control System System Shield > --- WEAPON ----------- Makeshift Hammer Makeshift Axe Makeshift Sword Makeshift Sword > --- INVENTORY -------- Light Ion Engine Wheel Energy Well Matter Compressor Advanced Terrain Scan Processor System Shield Long-range Tractor Beam Gamma Rifle Long-range Missile Launcher CR-A16's Pointy Stick [Rating: 100] Favorites ----------- Power Antimatter Reactor Engine Light Ion Engine Power Core Nuclear Core Reactor Antimatter Reactor Propulsion Light Treads Treads Light Treads Leg Carbon-fiber Leg Wheel Compact Wheel Hover Unit Improved Gravmag System Flight Unit Biomechanical Wings Utility Huge Storage Unit Device Seismic Detector Storage Huge Storage Unit Processor Enhanced Optical Array Hackware System Shield Protection Hardened Medium Armor Plating Weapon Gauss Cannon Energy Gun Shock Rifle Energy Cannon Light EM Pulse Cannon Ballistic Gun Gauss Rifle Ballistic Cannon Gauss Cannon Launcher Long-range Missile Launcher Special Weapon Mining Laser Impact Weapon Makeshift Hammer Slashing Weapon Makeshift Sword Piercing Weapon CR-A16's Pointy Stick Special Melee Weapon Improved Datajack Build | -11 -10 -9 -8 -7 -7 -7 -7 -7 -7 -6 -6 -6 -6 -6 -5 -5 -5 -5 -5 -4 -4 -4 ------- Run | Yrd Mat Mat Mat Fac Was Fac Low Low Dat Pro Fac Low Low Zio Pro Fac Upp Upp War Pro Fac Ext Slots Evolved 12 | . . 2 2 2 . . . . . . 2 . . . . 2 . . . . 2 . Power 1 | . . . . . . . . . . . . . . . . . . . . . 1 . Propulsion 4 | . . 1 1 1 . . . . . . 1 . . . . . . . . . . . Utility 5 | . . 1 . . . . . . . . 1 . . . . 2 . . . . 1 . Weapon 2 | . . . 1 1 . . . . . . . . . . . . . . . . . . Parts Attached 376 | 8 19 17 38 69 7 2 3 6 . 11 112 . 8 10 1 5 4 3 11 1 21 20 Power 49 | 1 2 . 2 2 1 . . . . 2 17 . 1 1 . . . 1 4 . 7 8 Engine 21 | 1 2 . 2 . . . . . . . 11 . . 1 . . . 1 1 . 2 . Core 18 | . . . . 2 . . . . . . 3 . 1 . . . . . 2 . 4 6 Reactor 10 | . . . . . 1 . . . . 2 3 . . . . . . . 1 . 1 2 Propulsion 77 | 3 . 5 10 12 2 . 1 2 . 4 20 . 1 2 1 3 . . 2 . 8 1 Treads 31 | 2 . 4 9 6 2 . 1 2 . 3 2 . . . . . . . . . . . Leg 8 | . . . . . . . . . . 1 6 . . 1 . . . . . . . . Wheel 13 | 1 . . . 6 . . . . . . 6 . . . . . . . . . . . Hover 7 | . . . . . . . . . . . 3 . . 1 . 3 . . . . . . Flight 18 | . . 1 1 . . . . . . . 3 . 1 . 1 . . . 2 . 8 1 Utility 160 | 2 11 4 16 39 2 2 2 4 . 1 45 . 5 2 . 2 4 2 4 1 6 6 Device 110 | 1 5 3 9 30 1 2 2 4 . 1 33 . 4 . . 1 3 1 2 . 5 3 Storage 9 | 1 2 1 2 . . . . . . . 3 . . . . . . . . . . . Processor 11 | . . . . . . . . . . . 4 . . 1 . 1 1 1 1 1 . 1 Hackware 4 | . . . . . . . . . . . . . . 1 . . . . . . 1 2 Protection 26 | . 4 . 5 9 1 . . . . . 5 . 1 . . . . . 1 . . . Artifact . | . . . . . . . . . . . . . . . . . . . . . . . Weapon 90 | 2 6 8 10 16 2 . . . . 4 30 . 1 5 . . . . 1 . . 5 Energy Gun 13 | . . . 2 3 1 . . . . 1 6 . . . . . . . . . . . Energy Cannon 8 | . . 3 . . . . . . . . 4 . 1 . . . . . . . . . Ballistic Gun 9 | 2 1 . 3 2 . . . . . . 1 . . . . . . . . . . . Ballistic Cannon 24 | . 3 2 2 7 1 . . . . . 9 . . . . . . . . . . . Launcher 16 | . . . 2 2 . . . . . 2 8 . . . . . . . . . . 2 Special Weapon 7 | . 2 3 1 . . . . . . . 1 . . . . . . . . . . . Impact Weapon 2 | . . . . . . . . . . . . . . 1 . . . . 1 . . . Slashing Weapon 8 | . . . . 2 . . . . . . 1 . . 3 . . . . . . . 2 Piercing Weapon 2 | . . . . . . . . . . . . . . 1 . . . . . . . 1 Special Melee Weapon 1 | . . . . . . . . . . 1 . . . . . . . . . . . . Unidentified Prototypes 12 | . . 1 2 3 . . . . . . 1 . . . . . . . 4 . 1 . Corrupted Parts 2 | . . . . . . . . . . . 2 . . . . . . . . . . . System Corruption 17 | . . . . . . . . . . . 17 . . . . . . . . . . . Parts Lost 79 | . . 1 4 13 . . . . . 7 31 . 1 . . . . 1 . . 4 17 Power 11 | . . . 1 . . . . . . . 4 . . . . . . 1 . . 2 3 Propulsion 34 | . . . 2 10 . . . . . 3 12 . 1 . . . . . . . 1 5 Utility 15 | . . . 1 . . . . . . . 7 . . . . . . . . . 1 6 Weapon 19 | . . 1 . 3 . . . . . 4 8 . . . . . . . . . . 3 Highest Loss Streak 10 | . . 1 2 3 . . . . . 7 10 . 1 . . . . 1 . . 4 6 To Critical Strikes 1 | . . . . . . . . . . . . . . . . . . . . . . 1 Average Slot Usage (%) 87 | . 98 99 99 95 85 84 84 84 84 74 77 60 60 78 89 92 94 92 91 100 93 67 Engine 3 | . 14 11 9 . . . . . . . 2 6 5 3 6 5 5 3 2 . 2 . Core 1 | . . . . 6 . . . . . . 1 . . 2 . . . . . 5 5 4 Reactor 2 | . . . . . 6 7 7 7 7 6 1 . . . . . . . . . . 1 Treads 19 | . 28 32 35 25 13 15 22 23 23 20 13 . . . . . . . . . . . Wheel 1 | . . . . 8 9 7 . . . . 3 . . . . . . . . . . . Hover 1 | . . . . . . . . . . . . 13 12 10 13 10 11 11 5 . . . Flight 4 | . . . . . . . . . . . 2 13 14 20 22 23 23 23 28 35 29 10 Device 11 | . 6 21 16 11 13 15 15 15 15 15 10 . 4 . . 5 5 5 5 5 9 7 Storage 7 | . 14 11 9 7 7 7 7 7 7 7 5 6 6 6 6 5 5 5 5 5 5 3 Processor 3 | . . . . . . . . . . . 6 20 14 13 13 16 17 17 13 11 13 10 Hackware 1 | . . . . . . . . . . . . . . 4 6 5 5 5 5 5 5 8 Protection 1 | . 6 . 1 3 1 . . . . . 1 . . . . . . . 1 4 . . Energy Gun 7 | . . . 6 15 15 15 15 15 15 11 5 . . . . . . . . . . . Energy Cannon 1 | . . 6 6 . . . . . . . 4 . . . . . . . . . . . Ballistic Gun 2 | . 14 . 4 3 . . . . . . 2 . . . . . . . . . . . Ballistic Cannon 9 | . 12 12 9 9 15 15 15 15 15 10 4 . . . . . . . . . . . Slashing Weapon 2 | . . . . . . . . . . . . . . 12 20 17 17 17 17 17 15 11 Naked Turns 8 | . . . . . . . . . . . 8 . . . . . . . . . . . Heaviest Build 131 | 11 32 92 109 111 130 123 123 123 123 123 131 19 30 24 21 22 22 22 33 33 36 48 Greatest Support 188 | 40 40 63 85 102 140 140 160 160 160 160 188 20 20 22 22 22 22 22 35 35 46 51 Greatest Overweight (x) 29 | . . 2 1 6 1 . . 1 . 29 12 . 1 1 . 2 . . 5 . 1 5 Average Overweight (x) . | . . . 1 1 . . . . . . 1 . . . . . . . . . . . Largest Inventory Capacity 25 | 8 15 25 25 25 25 25 25 25 25 25 25 10 10 10 10 10 10 10 10 10 10 10 Average Capacity 20 | 7 11 21 25 25 25 25 25 25 25 25 22 10 10 10 10 10 10 10 10 10 10 9 Most Carried 25 | 3 15 25 25 25 25 25 25 25 25 25 25 10 10 10 10 10 10 10 10 10 10 10 Average Carried 19 | 1 9 18 24 24 24 25 25 24 25 23 21 9 9 9 10 9 9 9 9 9 9 8 Final Capacity 25 | 8 15 25 25 25 25 25 25 25 25 25 10 10 10 10 10 10 10 10 10 10 10 5 Final Carried 25 | 3 15 25 25 25 25 25 25 25 25 19 9 10 10 10 10 9 10 10 10 10 10 5 Class Distribution -------------------- 48% | Scavenger-Skirmisher 17% | Mutant 9% | Derelict-Sprinter 6% | Scavenger-Tank 6% | Derelict-Mutant 5% | Skirmisher Dominant Class ---------------- Mutant | -10/Materials Mutant | -9/Materials Skirmisher | -8/Materials Scavenger-Skirmisher | -7/Factory Scavenger-Skirmisher | -7/Waste Scavenger-Skirmisher | -7/Factory Scavenger-Skirmisher | -7/Lower Caves Scavenger-Skirmisher | -7/Lower Caves Scavenger-Skirmisher | -7/Data Miner Scavenger-Skirmisher | -6/Proximity Caves Scavenger-Skirmisher | -6/Factory Mutant | -6/Lower Caves Mutant | -6/Lower Caves Derelict-Mutant | -6/Zion Derelict-Mutant | -5/Proximity Caves Derelict-Sprinter | -5/Factory Derelict-Sprinter | -5/Upper Caves Derelict-Sprinter | -5/Upper Caves Derelict-Sprinter | -5/Warlord Derelict-Sprinter | -4/Proximity Caves Derelict-Sprinter | -4/Factory Derelict-Sprinter | -4/Extension Resources | -11 -10 -9 -8 -7 -7 -7 -7 -7 -7 -6 -6 -6 -6 -6 -5 -5 -5 -5 -5 -4 -4 -4 ----------- Run | Yrd Mat Mat Mat Fac Was Fac Low Low Dat Pro Fac Low Low Zio Pro Fac Upp Upp War Pro Fac Ext Matter Collected 8059 | 291 455 305 1088 1176 525 . 276 238 . 350 2218 181 90 190 144 . 17 20 188 . 46 261 Remotely 872 | . . . . 7 . . 62 . . . 803 . . . . . . . . . . . Salvage Created 5426 | 149 346 303 1095 1182 . . . . . 257 1711 . . . . . . . . 16 46 321 Parts 276 | 9 22 15 67 58 . . . . . 11 74 . . . . . . . . . 7 13 Haulers Intercepted 11 | . 2 1 4 1 . . . . . . 2 . . . . . . . . . . 1 Recyclers Shooed 2 | . . . . . . . . . . . 2 . . . . . . . . . . . Parts Field Recycled . | . . . . . . . . . . . . . . . . . . . . . . . Retrieved Matter . | . . . . . . . . . . . . . . . . . . . . . . . Parts Self-Destructed 41 | . . . . . . . . 9 . 24 . 5 . 3 . . . . . . . . Prevented 4 | . . . . . . . . . . . . . . . . . . 4 . . . . Kills | -11 -10 -9 -8 -7 -7 -7 -7 -7 -7 -6 -6 -6 -6 -6 -5 -5 -5 -5 -5 -4 -4 -4 ------- Run | Yrd Mat Mat Mat Fac Was Fac Low Low Dat Pro Fac Low Low Zio Pro Fac Upp Upp War Pro Fac Ext Combat Hostiles Destroyed 101 | . 8 4 20 23 . . . . . 7 32 . . . . . . . . 2 . 5 Melee 8 | . . . . 1 . . . . . . . . . . . . . . . 2 . 5 Guns 29 | . 2 . 7 10 . . . . . 2 8 . . . . . . . . . . . Cannons 43 | . 6 4 10 8 . . . . . 3 12 . . . . . . . . . . . AOE 19 | . . . 3 4 . . . . . 2 10 . . . . . . . . . . . Classes Destroyed 17 | 2 5 2 3 2 . . . . . 1 2 . . . . . . . . . . . Worker 12 | . . . 3 1 . . . . . . 7 . . . . . . . . . 1 . Builder 15 | . . 1 2 3 . . . . . . 8 . . . . . . . . . 1 . Tunneler 5 | 3 1 . 1 . . . . . . . . . . . . . . . . . . . Hauler 11 | . 2 1 4 1 . . . . . . 2 . . . . . . . . . . 1 Recycler 7 | 1 . 1 1 2 . . . . . . 2 . . . . . . . . . . . Operator 1 | . 1 . . . . . . . . . . . . . . . . . . . . . Drone 3 | . . . . . . . . . . 1 . . . . . . . . . 2 . . Watcher 10 | . 2 1 4 2 . . . . . . 1 . . . . . . . . . . . Swarmer 22 | . 2 . 7 3 . . . . . 3 4 . . . . . . . . . . 3 Grunt 37 | . 6 . 7 10 . . . . . 1 13 . . . . . . . . . . . Brawler 1 | . . . . 1 . . . . . . . . . . . . . . . . . . Duelist 2 | . . . 1 . . . . . . . 1 . . . . . . . . . . . Sentry 16 | . . 4 4 5 . . . . . 2 1 . . . . . . . . . . . Demolisher 1 | . . . . . . . . . . . 1 . . . . . . . . . . . Hunter 7 | . . . 1 . . . . . . . 4 . . . . . . . . . . 2 Programmer 7 | . . . . 4 . . . . . . 3 . . . . . . . . . . . Assembled 5 | . . . . . . . . . . . 5 . . . . . . . . . . . Thug 1 | . . . . . . . . . . 1 . . . . . . . . . . . . Best Kill Streak 9 | 4 5 2 6 5 . . . . . 2 9 . . . . . . . . 1 1 3 Combat Bots Only 6 | . 2 2 5 4 . . . . . 2 6 . . . . . . . . 1 . 3 Max Kills in Single Turn 6 | 1 2 1 2 2 . . . . . 1 6 . . . . . . . . 1 1 1 Gunslinging . | . . . . . . . . . . . . . . . . . . . . . . . Exploded 2 | . . . 1 2 . . . . . 1 2 . . . . . . . . . . . Melee 1 | . . . . 1 . . . . . . . . . . . . . . . 1 . 1 Uniques/NPCs Destroyed . | . . . . . . . . . . . . . . . . . . . . . . . Combat | -11 -10 -9 -8 -7 -7 -7 -7 -7 -7 -6 -6 -6 -6 -6 -5 -5 -5 -5 -5 -4 -4 -4 -------- Run | Yrd Mat Mat Mat Fac Was Fac Low Low Dat Pro Fac Low Low Zio Pro Fac Upp Upp War Pro Fac Ext Hostile Shots Fired 1052 | . 41 34 126 226 . . . 11 . 100 260 17 18 . 6 . . 12 6 11 12 172 Missed 332 | . 9 8 37 71 . . . 2 . 22 76 6 10 . 4 . . 6 3 8 5 65 Damage Taken 13289 | . 454 417 1331 2042 . 22 . 243 . 1774 3708 187 130 . 18 . . 119 63 53 432 2296 Core 2981 | . 74 32 139 298 . . . 31 . 331 651 139 49 . . . . 17 44 24 118 1034 Absorbed by Shields . | . . . . . . . . . . . . . . . . . . . . . . . Reduced by Siege Mode 30 | . . . . . . . . . . . 30 . . . . . . . . . . . Redirected to Shielding 134 | . . . 101 . . . . . . . 33 . . . . . . . . . . . Regen/Repaired (Parts) 528 | . . 127 . . 118 . . 220 . . . . . 33 . . . . 30 . . . Core Remaining (%) 61 | 100 70 92 74 . . . . . . 5 . . . . 1 . . . . 91 . . Volleys Fired 319 | 16 49 30 61 59 . . . 2 . 13 76 . 8 . . . . . . . . 5 Largest 4 | 2 2 2 3 4 . . . 4 . 4 4 . 1 . . . . . . . . 1 Hottest 268 | 40 100 116 138 221 . . . 240 . 240 268 . 90 . . . . . . . . 43 Shots Fired 864 | 32 92 48 172 218 . 1 2 11 . 42 233 . 8 . . . . . . . . 5 Gun 388 | 32 28 . 77 137 . 1 1 5 . 18 89 . . . . . . . . . . . Cannon 421 | . 58 37 93 76 . . 1 6 . 19 123 . 8 . . . . . . . . . Launcher 38 | . . . 2 5 . . . . . 5 21 . . . . . . . . . . 5 Special 17 | . 6 11 . . . . . . . . . . . . . . . . . . . . Kinetic 480 | 32 86 21 106 107 . . 1 6 . 19 102 . . . . . . . . . . . Thermal 307 | . 6 25 44 104 . . 1 3 . 13 103 . 8 . . . . . . . . . Explosive 38 | . . . 2 5 . . . . . 5 21 . . . . . . . . . . 5 Electromagnetic 39 | . . 2 20 2 . 1 . 2 . 5 7 . . . . . . . . . . . Robot Hit Streak 20 | 4 7 7 12 20 . 2 3 3 . 4 12 . . . . . . . . . . . Robot Miss Streak 7 | 2 2 3 5 7 . . 1 2 . 5 4 . . . . . . . . . . . Penetration Max 1 | . . . 1 1 . . . . . . 1 . . . . . . . . . . . Secondary Targets . | . . . . . . . . . . . . . . . . . . . . . . . Shots Hit Robots 525 | 17 50 26 92 150 . 1 1 7 . 15 134 . . . . 1 . . . 3 4 24 Core Hits 286 | 8 19 12 49 49 . . . 2 . 11 125 . . . . . . . . 1 2 8 Critical Kills 5 | . . . . 1 . . . . . 3 1 . . . . . . . . . . . Critical Parts Destroyed 3 | . . . 1 1 . . . 1 . . . . . . . . . . . . . . Critical Strikes 28 | . 1 . 2 9 . . . 3 . 3 10 . . . . . . . . . . . Burn 9 | . . . 1 3 . . . 1 . . 4 . . . . . . . . . . . Meltdown 1 | . . . . . . . . . . . 1 . . . . . . . . . . . Destroy 8 | . . . 1 2 . . . 2 . 3 . . . . . . . . . . . . Blast 9 | . 1 . . 3 . . . . . . 5 . . . . . . . . . . . Sever 1 | . . . . 1 . . . . . . . . . . . . . . . . . . Melee Attacks 131 | . . . . 17 . . . . . 2 . . . . 2 4 7 3 . 7 39 50 Impact 13 | . . . . . . . . . . . . . . . . . . . . 4 6 3 Slashing 102 | . . . . 17 . . . . . . . . . . 2 4 7 3 . 3 33 33 Piercing 14 | . . . . . . . . . . . . . . . . . . . . . . 14 Sneak Attacks 6 | . . . . 1 . . . . . 2 . . . . . . . . . . 2 1 Combat Hostiles . | . . . . . . . . . . . . . . . . . . . . . . . Follow-up Attacks 17 | . . . . . . . . . . . . . . . . 1 . . . 2 2 12 Damage Inflicted 15704 | 136 726 552 2211 3900 . 15 . 159 . 511 6092 . . . . 47 . . . 212 248 895 Guns 4597 | 136 138 . 825 2125 . 15 . 33 . 85 1240 . . . . . . . . . . . Cannons 5955 | . 588 459 1224 1227 . . . 126 . 98 2233 . . . . . . . . . . . Explosions 3401 | . . 41 146 267 . . . . . 328 2619 . . . . . . . . . . . Melee 1683 | . . . . 281 . . . . . . . . . . . 47 . . . 212 248 895 Ramming 20 | . . 4 16 . . . . . . . . . . . . . . . . . . . Kinetic 5868 | 136 726 255 1235 1745 . . . 126 . 98 1547 . . . . . . . . . . . Thermal 4320 | . . 246 522 1607 . . . 22 . 67 1856 . . . . . . . . . . . Explosive 2732 | . . . 95 267 . . . . . 328 2042 . . . . . . . . . . . Electromagnetic 1081 | . . 47 343 . . 15 . 11 . 18 647 . . . . . . . . . . . Impact 221 | . . . . . . . . . . . . . . . . . . . . 176 . 45 Slashing 1101 | . . . . 281 . . . . . . . . . . . 47 . . . 36 248 489 Piercing 361 | . . . . . . . . . . . . . . . . . . . . . . 361 Highest Corruption 21 | . . . . 12 12 12 12 13 13 13 19 15 15 15 . . . . . . 9 21 Average Corruption 11 | . . . . 7 12 12 12 12 13 13 10 15 15 15 . . . . . . 9 17 Corruption Purged 17 | . . . . . . . . . . . 17 . . . . . . . . . . . Corruption Blocked . | . . . . . . . . . . . . . . . . . . . . . . . Effects 382 | . . . . 25 27 12 93 74 5 27 67 8 12 3 . . . . . . 2 27 Message Errors 89 | . . . . 6 8 1 21 20 . 7 13 3 2 . . . . . . . . 8 Matter Fused 95 | . . . . 2 6 4 26 19 2 5 19 1 3 1 . . . . . . . 7 Heat Flow Errors 44 | . . . . 5 . 1 13 10 . 1 9 . 3 . . . . . . . 1 1 Energy Discharges 47 | . . . . 2 5 2 11 8 2 4 8 1 3 . . . . . . . 1 . Parts Rejected 3 | . . . . 1 . . . . . . 2 . . . . . . . . . . . Parts Fused 8 | . . . . . 3 . 1 2 1 . 1 . . . . . . . . . . . Data Loss (minor) 41 | . . . . 6 3 2 11 5 . 4 3 1 . 1 . . . . . . . 5 Data Loss (major) 18 | . . . . . 2 . 3 5 . 2 3 1 1 1 . . . . . . . . Misfires 9 | . . . . . . 1 2 3 . 1 2 . . . . . . . . . . . Alerts 10 | . . . . . . 1 5 2 . 2 . . . . . . . . . . . . Misdirections 10 | . . . . . . . . . . 1 2 1 . . . . . . . . . 6 Weapon Failures 8 | . . . . 3 . . . . . . 5 . . . . . . . . . . . Overload Shots . | . . . . . . . . . . . . . . . . . . . . . . . Overflow Damage 435 | . 5 . . 151 . . . . . 23 144 . . . . 12 . . . 45 . 55 Projectiles 157 | . 5 . . 58 . . . . . . 94 . . . . . . . . . . . Explosions 142 | . . . . 69 . . . . . 23 50 . . . . . . . . . . . Melee 136 | . . . . 24 . . . . . . . . . . . 12 . . . 45 . 55 Knockbacks 41 | . 10 1 12 5 . . . 3 . 1 8 . . . . . . . . 1 . . Impact 2 | . . 1 . . . . . . . . . . . . . . . . . 1 . . Kinetic 35 | . 10 . 11 4 . . . 2 . 1 7 . . . . . . . . . . . Secondary 4 | . . . 1 1 . . . 1 . . 1 . . . . . . . . . . . Self-Inflicted Damage 411 | . . 22 64 . . . . . . 38 282 . . . . . . . . . . 5 Shots 17 | . . 1 2 . . . . . . 2 10 . . . . . . . . . . 2 Rammed 1 | . . 1 . . . . . . . . . . . . . . . . . . . . Targets Rammed 2 | . . 1 1 . . . . . . . . . . . . . . . . . . . Kicked . | . . . . . . . . . . . . . . . . . . . . . . . Crushed 1 | . . . 1 . . . . . . . . . . . . . . . . . . . Highest Temperature 540 | . 69 114 399 540 . 112 281 528 . 351 461 . 239 . . . . 13 34 41 177 189 Average Temperature 110 | . 19 34 128 144 . 51 105 146 . 116 154 . 126 . . . . 13 16 15 28 41 Received Heat Transfer 2545 | . 147 105 549 675 . 9 . 12 . 9 627 9 9 . . . . 27 . . . 367 Effects 35 | . . . 4 9 . . . 8 . 2 12 . . . . . . . . . . . Shutdowns 6 | . . . . 2 . . . 1 . . 3 . . . . . . . . . . . Energy Bleed 7 | . . . 1 2 . . . . . . 4 . . . . . . . . . . . Interference 15 | . . . 3 3 . . . 5 . 2 2 . . . . . . . . . . . Short Circuit 2 | . . . . 1 . . . 1 . . . . . . . . . . . . . . Damage (minor) 4 | . . . . . . . . 1 . . 3 . . . . . . . . . . . Damage (core) 1 | . . . . 1 . . . . . . . . . . . . . . . . . . Siege Activations 2 | . . . . . . . . . . . 2 . . . . . . . . . . . Total Turns 35 | . . . . . . . . . . . 35 . . . . . . . . . . . Longest Duration 20 | . . . . . . . . . . . 20 . . . . . . . . . . . Robots Corrupted 2 | . . . . . . . . . . 1 1 . . . . . . . . . . . Combat Hostiles 1 | . . . . . . . . . . . 1 . . . . . . . . . . . Parts Fried 8 | . . . . . . . . . . . 6 . . . . . . . . 2 . . Impact Corruptions 2 | . . . . . . . . . . . . . . . . . . . . 1 . 1 Robots Melted 1 | . . . . . . . . . . . 1 . . . . . . . . . . . Combat Hostiles 1 | . . . . . . . . . . . 1 . . . . . . . . . . . Parts Melted 15 | . . . . 4 . . . . . . 11 . . . . . . . . . . . Heat Transferred 8678 | . . 533 1062 3145 . . . 111 . 111 3716 . . . . . . . . . . . Parts Sabotaged . | . . . . . . . . . . . . . . . . . . . . . . . Parts Stolen . | . . . . . . . . . . . . . . . . . . . . . . . Parts Stripped . | . . . . . . . . . . . . . . . . . . . . . . . Power Chain Reactions 3 | . . 1 2 . . . . . . . . . . . . . . . . . . . Alert | -11 -10 -9 -8 -7 -7 -7 -7 -7 -7 -6 -6 -6 -6 -6 -5 -5 -5 -5 -5 -4 -4 -4 ------- Run | Yrd Mat Mat Mat Fac Was Fac Low Low Dat Pro Fac Low Low Zio Pro Fac Upp Upp War Pro Fac Ext Peak Influence 966 | 20 182 165 397 285 99 100 . . . . 966 . . . . 129 . . . . 260 224 Initial 846 | . 13 29 20 20 99 . . . . . 846 . . . . 37 . . . . 156 105 Average 219 | 6 66 44 90 108 55 37 . . . . 709 . . . . 69 . . . . 205 140 Maximum Alert Level 3 | . . . 1 1 . . . . . . 3 . . . . . . . . . 1 1 Low Security (%) 71 | 100 100 100 84 87 100 100 . . . . . . . . . 100 . . . . 49 90 Level 1 7 | . . . 15 12 . . . . . . 4 . . . . . . . . . 50 9 Level 2 10 | . . . . . . . . . . . 47 . . . . . . . . . . . Level 3 10 | . . . . . . . . . . . 47 . . . . . . . . . . . Level 4 . | . . . . . . . . . . . . . . . . . . . . . . . Level 5 . | . . . . . . . . . . . . . . . . . . . . . . . High Security . | . . . . . . . . . . . . . . . . . . . . . . . Max Security . | . . . . . . . . . . . . . . . . . . . . . . . Squads Dispatched 25 | . 2 2 . 6 . 1 . . . . 8 . 1 . . 2 . . . . 1 2 Investigation 6 | . . . . . . 1 . . . . 1 . . . . 2 . . . . 1 1 Extermination 5 | . . . . 3 . . . . . . 2 . . . . . . . . . . . Reinforcement 11 | . 2 2 . 3 . . . . . . 3 . . . . . . . . . . 1 Assault 3 | . . . . . . . . . . . 2 . 1 . . . . . . . . . Garrison . | . . . . . . . . . . . . . . . . . . . . . . . Intercept . | . . . . . . . . . . . . . . . . . . . . . . . Searches Triggered 3 | . . . . . . . . . . . 3 . . . . . . . . . . . Data Miner Redirects 1 | . . . . . . . . . . . 1 . . . . . . . . . . . Construction Impeded 4 | . . . . 2 . . . . . . 2 . . . . . . . . . . . Haulers Reinforced 1 | . . . . 1 . . . . . . . . . . . . . . . . . . Active Scanning Responses . | . . . . . . . . . . . . . . . . . . . . . . . Cargo Convoy Interrupts . | . . . . . . . . . . . . . . . . . . . . . . . Stealth | -11 -10 -9 -8 -7 -7 -7 -7 -7 -7 -6 -6 -6 -6 -6 -5 -5 -5 -5 -5 -4 -4 -4 --------- Run | Yrd Mat Mat Mat Fac Was Fac Low Low Dat Pro Fac Low Low Zio Pro Fac Upp Upp War Pro Fac Ext Distress Signals 11 | . 3 . 2 1 . . . . . . 2 . . . . . . . . . . 3 Communications Jammed . | . . . . . . . . . . . . . . . . . . . . . . . Distress Signals . | . . . . . . . . . . . . . . . . . . . . . . . Times Spotted 243 | . 17 8 31 24 . 1 6 4 . 13 58 8 11 . 6 1 . 6 15 6 5 23 Peak Tracking Total 15 | . 4 5 5 4 . 1 5 4 . 7 8 9 13 . 4 1 . 6 15 4 3 13 Tactical Retreats 23 | . 2 2 . . . . . . . 1 4 2 2 . 2 . . 3 1 . . 4 Traps | -11 -10 -9 -8 -7 -7 -7 -7 -7 -7 -6 -6 -6 -6 -6 -5 -5 -5 -5 -5 -4 -4 -4 ------- Run | Yrd Mat Mat Mat Fac Was Fac Low Low Dat Pro Fac Low Low Zio Pro Fac Upp Upp War Pro Fac Ext Traps Triggered 9 | . 1 . . 2 . 1 . 1 . . 3 . . . . . . . . . . 1 Indirectly . | . . . . . . . . . . . . . . . . . . . . . . . Trap Hack Attempts . | . . . . . . . . . . . . . . . . . . . . . . . Triggered . | . . . . . . . . . . . . . . . . . . . . . . . Disarmed . | . . . . . . . . . . . . . . . . . . . . . . . Reprogrammed . | . . . . . . . . . . . . . . . . . . . . . . . Reused . | . . . . . . . . . . . . . . . . . . . . . . . Traps Extracted . | . . . . . . . . . . . . . . . . . . . . . . . Installed . | . . . . . . . . . . . . . . . . . . . . . . . Triggered 11 | . . . . . . . . . . . . . . . . . . . 11 . . . Machines | -11 -10 -9 -8 -7 -7 -7 -7 -7 -7 -6 -6 -6 -6 -6 -5 -5 -5 -5 -5 -4 -4 -4 ---------- Run | Yrd Mat Mat Mat Fac Was Fac Low Low Dat Pro Fac Low Low Zio Pro Fac Upp Upp War Pro Fac Ext Machines Disabled 27 | . . . 3 2 . . . . . 1 21 . . . . . . . . . . . Max in Single Turn 10 | . . . 1 2 . . . . . 1 10 . . . . . . . . . . . Garrison Access 3 | . . . 1 . . . . . . . 1 . . . . . . . . . 1 . Machines Repaired . | . . . . . . . . . . . . . . . . . . . . . . . Machines Dismantled . | . . . . . . . . . . . . . . . . . . . . . . . Machines Sabotaged . | . . . . . . . . . . . . . . . . . . . . . . . Overloaded Fab Kills . | . . . . . . . . . . . . . . . . . . . . . . . Hacking | -11 -10 -9 -8 -7 -7 -7 -7 -7 -7 -6 -6 -6 -6 -6 -5 -5 -5 -5 -5 -4 -4 -4 --------- Run | Yrd Mat Mat Mat Fac Was Fac Low Low Dat Pro Fac Low Low Zio Pro Fac Upp Upp War Pro Fac Ext Machines Accessed 45 | . 5 4 10 . . 2 2 . 4 . 5 . . . . 2 . . 3 1 5 2 Terminals 20 | . 4 1 8 . . . . . . . 1 . . . . . . . . 1 3 2 Fabricators 2 | . . . . . . . . . . . 2 . . . . . . . . . . . Repair Stations 3 | . . 2 . . . 1 . . . . . . . . . . . . . . . . Recycling Units 5 | . 1 . . . . 1 . . . . 1 . . . . 2 . . . . . . Scanalyzers 2 | . . 1 1 . . . . . . . . . . . . . . . . . . . Garrison Access 4 | . . . 1 . . . . . . . 1 . . . . . . . . . 2 . Total Hacks 163 | . 19 11 51 . . 3 5 . 31 . 13 . . . . 2 . . 7 1 15 5 Successful 121 | . 14 8 37 . . 1 5 . 31 . 8 . . . . 2 . . 7 1 7 . Failed 42 | . 5 3 14 . . 2 . . . . 5 . . . . . . . . . 8 5 Catastrophic 2 | . 1 . . . . . . . . . . . . . . . . . . . . 1 Database Lockouts . | . . . . . . . . . . . . . . . . . . . . . . . Manual 42 | . 8 1 13 . . 1 . . . . 3 . . 2 . 2 . . 1 . 6 5 Terminals 76 | . 17 3 38 . . . . . . . 1 . . . . . . . . 1 11 5 Fabricators 4 | . . . . . . . . . . . 4 . . . . . . . . . . . Repair Stations 7 | . . 5 . . . 2 . . . . . . . . . . . . . . . . Recycling Units 9 | . 2 . . . . 1 . . . . 4 . . . . 2 . . . . . . Scanalyzers 15 | . . 3 12 . . . . . . . . . . . . . . . . . . . Garrison Access 9 | . . . 1 . . . . . . . 4 . . . . . . . . . 4 . Terminal Hacks 78 | . 10 2 18 . . . 5 . 31 . 1 . . . . . . . 7 1 3 . Record 25 | . . . 2 . . . 4 . 11 . 1 . . . . . . . 6 1 . . Part Schematic 11 | . . . . . . . . . 11 . . . . . . . . . . . . . Robot Schematic 6 | . . . . . . . . . 6 . . . . . . . . . . . . . Robot Analysis 2 | . 1 . . . . . . . . . . . . . . . . . . . 1 . Prototype ID Bank 8 | . 1 1 2 . . . . . 3 . . . . . . . . . . . 1 . Open Door 2 | . . . . . . . 1 . . . . . . . . . . . 1 . . . Branch Access Points 1 | . 1 . . . . . . . . . . . . . . . . . . . . . Emergency Access Points 2 | . 1 . 1 . . . . . . . . . . . . . . . . . . . Terminal Index 2 | . 1 . 1 . . . . . . . . . . . . . . . . . . . Alert Level 2 | . . . 2 . . . . . . . . . . . . . . . . . . . Unreport Threat 3 | . . . 3 . . . . . . . . . . . . . . . . . . . Locate Traps 4 | . 2 1 1 . . . . . . . . . . . . . . . . . . . Dispatch Records 2 | . . . 2 . . . . . . . . . . . . . . . . . . . Hauler Manifests 2 | . 1 . 1 . . . . . . . . . . . . . . . . . . . Registered Components 1 | . . . 1 . . . . . . . . . . . . . . . . . . . Zone Layout 5 | . 2 . 2 . . . . . . . . . . . . . . . . . 1 . Fabricator Hacks 2 | . . . . . . . . . . . 2 . . . . . . . . . . . Load Schematic 1 | . . . . . . . . . . . 1 . . . . . . . . . . . Build 1 | . . . . . . . . . . . 1 . . . . . . . . . . . Repair Station Hacks 4 | . . 4 . . . . . . . . . . . . . . . . . . . . Scan Component 2 | . . 2 . . . . . . . . . . . . . . . . . . . . Repair 2 | . . 2 . . . . . . . . . . . . . . . . . . . . Recycling Unit Hacks 1 | . . . . . . . . . . . 1 . . . . . . . . . . . Report Inventory 1 | . . . . . . . . . . . 1 . . . . . . . . . . . Scanalyzer 11 | . . 1 10 . . . . . . . . . . . . . . . . . . . Insert Component 6 | . . 1 5 . . . . . . . . . . . . . . . . . . . Analyze 5 | . . . 5 . . . . . . . . . . . . . . . . . . . Garrison Access Hacks 3 | . . . 1 . . . . . . . 1 . . . . . . . . . 1 . Seal Access 3 | . . . 1 . . . . . . . 1 . . . . . . . . . 1 . Unauthorized Hacks 22 | . 4 1 8 . . 1 . . . . 3 . . . . 2 . . . . 3 . Terminals 14 | . 2 1 8 . . . . . . . . . . . . . . . . . 3 . Assimilate 5 | . . . 3 . . . . . . . . . . . . . . . . . 2 . Botnet 8 | . 2 1 4 . . . . . . . . . . . . . . . . . 1 . Operators 1 | . . . 1 . . . . . . . . . . . . . . . . . . . Fabricators . | . . . . . . . . . . . . . . . . . . . . . . . Repair Stations . | . . . . . . . . . . . . . . . . . . . . . . . Recycling Units 8 | . 2 . . . . 1 . . . . 3 . . . . 2 . . . . . . Monitor 2 | . 1 . . . . . . . . . 1 . . . . . . . . . . . Reject 1 | . . . . . . . . . . . 1 . . . . . . . . . . . Recyclers 3 | . 1 . . . . 1 . . . . 1 . . . . . . . . . . . Tunnel 2 | . . . . . . . . . . . . . . . . 2 . . . . . . Scanalyzers . | . . . . . . . . . . . . . . . . . . . . . . . Garrison Access . | . . . . . . . . . . . . . . . . . . . . . . . Data Cores Recovered . | . . . . . . . . . . . . . . . . . . . . . . . Used . | . . . . . . . . . . . . . . . . . . . . . . . Hacking Detections 29 | . 4 4 9 . . 2 . . . . 4 . . . . . . . . . 4 2 Full Trace Events 4 | . . . 1 . . . . . . . 1 . . . . . . . . . 1 1 Feedback Events . | . . . . . . . . . . . . . . . . . . . . . . . Feedback Blocked . | . . . . . . . . . . . . . . . . . . . . . . . Robot Schematics Acquired 8 | . . . . . . . . . 6 . . . . 2 . . . . . . . . Robots Built . | . . . . . . . . . . . . . . . . . . . . . . . Authchips . | . . . . . . . . . . . . . . . . . . . . . . . Time . | . . . . . . . . . . . . . . . . . . . . . . . Total Robot Build Rating . | . . . . . . . . . . . . . . . . . . . . . . . Part Schematics Acquired 28 | . . . 5 . . . . . 11 . . . . 12 . . . . . . . . Parts Built 1 | . . . . . . . . . . . 1 . . . . . . . . . . . Authchips . | . . . . . . . . . . . . . . . . . . . . . . . Time 76 | . . . . . . . . . . . 76 . . . . . . . . . . . Total Part Build Rating 5 | . . . . . . . . . . . 5 . . . . . . . . . . . Parts Repaired 2 | . . 2 . . . . . . . . . . . . . . . . . . . . Time 52 | . . 52 . . . . . . . . . . . . . . . . . . . . Parts Recycled . | . . . . . . . . . . . . . . . . . . . . . . . Recycled Matter . | . . . . . . . . . . . . . . . . . . . . . . . Retrieved Matter . | . . . . . . . . . . . . . . . . . . . . . . . Retrieved Components . | . . . . . . . . . . . . . . . . . . . . . . . Parts Scanalyzed 6 | . . 1 5 . . . . . . . . . . . . . . . . . . . Part Schematics Acquired 5 | . . . 5 . . . . . . . . . . . . . . . . . . . Parts Damaged . | . . . . . . . . . . . . . . . . . . . . . . . Bothacking | -11 -10 -9 -8 -7 -7 -7 -7 -7 -7 -6 -6 -6 -6 -6 -5 -5 -5 -5 -5 -4 -4 -4 ------------ Run | Yrd Mat Mat Mat Fac Was Fac Low Low Dat Pro Fac Low Low Zio Pro Fac Upp Upp War Pro Fac Ext Used RIF Installer . | . . . . . . . . . . . . . . . . . . . . . . . Robots Hacked . | . . . . . . . . . . . . . . . . . . . . . . . Non-combat . | . . . . . . . . . . . . . . . . . . . . . . . Combat . | . . . . . . . . . . . . . . . . . . . . . . . Robot Hacks Applied . | . . . . . . . . . . . . . . . . . . . . . . . Relay Couplers Released . | . . . . . . . . . . . . . . . . . . . . . . . Fabnet Peak Effective % . | . . . . . . . . . . . . . . . . . . . . . . . Robots Rewired 11 | . . . . . . . . . . 2 . . . . . . . . 5 . . 4 Allies Hacked 1 | . . . . . . 1 . . . . . . . . . . . . . . . . Hacks Repelled . | . . . . . . . . . . . . . . . . . . . . . . . Allies | -11 -10 -9 -8 -7 -7 -7 -7 -7 -7 -6 -6 -6 -6 -6 -5 -5 -5 -5 -5 -4 -4 -4 -------- Run | Yrd Mat Mat Mat Fac Was Fac Low Low Dat Pro Fac Low Low Zio Pro Fac Upp Upp War Pro Fac Ext Total Allies 45 | . . . 2 . 20 . . . . 3 3 . . 5 . . . . 5 . 2 5 Largest Group 20 | . . . 1 1 20 20 17 15 5 5 3 . . 5 5 . . . 5 1 1 2 Highest-Rated Group 556 | . . . 10 10 556 556 497 427 141 158 158 . . 110 110 . . . 269 65 10 84 Highest-Rated Ally 96 | . . . 10 10 35 35 35 35 31 96 96 . . 31 31 . . . 68 65 10 46 Total Orders 5 | . . . 2 . . . . . . . 3 . . . . . . . . . . . STAY 1 | . . . 1 . . . . . . . . . . . . . . . . . . . FOLLOW 1 | . . . 1 . . . . . . . . . . . . . . . . . . . EXPLORE 2 | . . . . . . . . . . . 2 . . . . . . . . . . . RETURN 1 | . . . . . . . . . . . 1 . . . . . . . . . . . Ally Attacks 229 | . . . . . . 21 20 47 . 59 39 . . . 2 . . . 23 . . 18 Total Damage 5442 | . . . . . . 325 1014 978 . 957 773 . . . . . . . 682 . . 713 Kills 39 | . . . . . . 2 7 8 . 8 8 . . . . . . . 5 . . 1 Allies Corrupted 3 | . . . . . . . . . . 1 2 . . . . . . . . . . . Allies Melted . | . . . . . . . . . . . . . . . . . . . . . . . Intel | -11 -10 -9 -8 -7 -7 -7 -7 -7 -7 -6 -6 -6 -6 -6 -5 -5 -5 -5 -5 -4 -4 -4 ------- Run | Yrd Mat Mat Mat Fac Was Fac Low Low Dat Pro Fac Low Low Zio Pro Fac Upp Upp War Pro Fac Ext Robot Analysis Total 2 | . 1 . . . . . . . . . . . . . . . . . . . 1 . Derelict Logs Recovered 16 | . . . . . . . 1 2 . 1 . . 3 1 3 . 3 1 . 1 . . Drone Launches 2 | . . . . . . . . . . . 2 . . . . . . . . . . . Drone Recoveries 2 | . . . . . . . . . . . 2 . . . . . . . . . . . Decoded 0b10 Intel 6 | . . . . . . . . . . . . . . . . 2 . . . . 4 . Traps 1 | . . . . . . . . . . . . . . . . . . . . . 1 . Items 3 | . . . . . . . . . . . . . . . . 1 . . . . 2 . Machines 2 | . . . . . . . . . . . . . . . . 1 . . . . 1 . Exploration | -11 -10 -9 -8 -7 -7 -7 -7 -7 -7 -6 -6 -6 -6 -6 -5 -5 -5 -5 -5 -4 -4 -4 ------------- Run | Yrd Mat Mat Mat Fac Was Fac Low Low Dat Pro Fac Low Low Zio Pro Fac Upp Upp War Pro Fac Ext Turns Passed 17950 | 112 1286 1105 1984 1498 714 243 2597 1885 130 656 2158 136 242 874 565 79 131 167 501 104 242 541 Spaces Moved 13986 | 39 655 434 673 601 434 146 1608 1147 82 355 1351 171 412 1305 970 217 415 475 966 343 510 677 Core 53 | 3 . . . . . . . . . 1 31 . . . . . . . 5 . . 13 Treads 6310 | 32 655 434 673 309 396 146 1608 1147 82 354 474 . . . . . . . . . . . Legs . | . . . . . . . . . . . . . . . . . . . . . . . Wheels 598 | 4 . . . 292 38 . . . . . 264 . . . . . . . . . . . Hover 744 | . . . . . . . . . . . 72 171 310 91 93 1 . . 6 . . . Flight 6281 | . . . . . . . . . . . 510 . 102 1214 877 216 415 475 955 343 510 664 Fastest Speed 21 | 50 160 160 235 105 105 160 160 160 160 160 32 56 32 32 28 28 28 28 21 21 21 27 Average Speed 104 | 145 160 208 237 185 155 160 160 160 160 165 106 56 51 55 31 28 28 28 27 21 24 52 Slowest Speed 1500 | 160 160 320 240 240 240 160 160 240 160 1500 260 56 106 121 61 160 28 28 300 21 100 335 Overloaded Moves . | . . . . . . . . . . . . . . . . . . . . . . . Propulsion Burnouts . | . . . . . . . . . . . . . . . . . . . . . . . Robots Hopped 8 | . . . . . . . . . . . 1 . 3 . . . . . 2 . 1 1 Cave-ins Triggered 2 | . . . . . . . . . . . . . . . . . . . . . 1 1 Exploration Rate (%) 54 | 5 74 26 54 14 96 5 98 90 70 50 24 41 67 90 92 5 68 73 93 64 13 47 Regions Visited 22 Branch Regions 13 Pre-discovered Areas 4 | . . . . . . . . . 1 . . . . . . 2 1 . . . . . Known Exits Taken 10 | . . . . . . . . . . . 1 1 1 1 . 1 1 1 1 1 1 . Unknown Exits Taken 10 | 1 1 1 1 . . 1 1 1 1 1 . . . . 1 . . . . . . . Scrap Searched 25 | . . . . . . . 4 5 . . . 1 3 4 1 . 2 2 . 3 . . Spaces Dug 134 | . 6 4 . 8 . . . . . . 1 . 6 . 1 1 4 2 . . 20 81 Terrain Destroyed 505 | . 6 13 27 62 . . . . . 75 186 . 7 . 1 1 4 2 . . 20 101 Melee 40 | . . . . 7 . . . . . . . . . . 1 1 4 2 . . 20 5 Projectile 71 | . 6 6 1 22 . . . . . 7 22 . 7 . . . . . . . . . AOE 394 | . . 7 26 33 . . . . . 68 164 . . . . . . . . . . 96 Terrain Rammed . | . . . . . . . . . . . . . . . . . . . . . . . Walls Destroyed . | . . . . . . . . . . . . . . . . . . . . . . . Machines Disabled . | . . . . . . . . . . . . . . . . . . . . . . . Actions | -11 -10 -9 -8 -7 -7 -7 -7 -7 -7 -6 -6 -6 -6 -6 -5 -5 -5 -5 -5 -4 -4 -4 --------- Run | Yrd Mat Mat Mat Fac Was Fac Low Low Dat Pro Fac Low Low Zio Pro Fac Upp Upp War Pro Fac Ext Total 16468 | 65 792 561 939 813 485 155 1635 1194 81 393 1899 211 431 1449 1230 233 424 506 1196 371 603 802 Wait 1248 | . 45 59 107 7 20 8 18 33 . 5 277 36 . 128 259 . . 22 177 19 24 4 Move 13950 | 38 654 433 672 601 433 145 1607 1146 81 354 1348 170 406 1304 969 216 414 474 961 342 507 675 Hop 7 | . . . . . . . . . . . 1 . 2 . . . . . 2 . 1 1 Pick Up 156 | 2 16 15 28 26 8 . 3 3 . 4 32 3 . . . 3 . 1 2 2 6 2 Fast Attach 129 | 8 . 3 4 14 3 . 1 . . 4 35 . 6 10 1 5 2 3 6 1 15 8 Attach 65 | . 1 4 6 6 . . . . . 5 36 . 1 . . . . . 2 . . 4 Detach 36 | 1 1 1 . . . . . . . . 19 . 2 3 . . 1 1 2 . 2 3 Swap 184 | . 18 10 28 51 4 2 2 6 . 2 41 . 1 . . . 2 . 3 . 6 8 Drop 195 | . 8 5 32 32 17 . 4 4 . 4 34 2 5 4 . 7 1 3 8 3 18 4 Fire 319 | 16 49 30 61 59 . . . 2 . 13 76 . 8 . . . . . . . . 5 Melee 90 | . . . . 17 . . . . . 2 . . . . 1 2 4 2 . 4 24 34 Ram . | . . . . . . . . . . . . . . . . . . . . . . . Kick . | . . . . . . . . . . . . . . . . . . . . . . . Crush 2 | . . 1 1 . . . . . . . . . . . . . . . . . . . Escape Stasis 18 | . . . . . . . . . . . . . . . . . . . . . . 18 Rewire 69 | . . . . . . . . . . . . . . . . . . . 33 . . 36 Trap . | . . . . . . . . . . . . . . . . . . . . . . . Miscellaneous . | . . . . . . . . . . . . . . . . . . . . . . . Route ------- -11/Scrapyard -10/Materials (discovered 2 exits: *Mat / *Min) -9/Materials -8/Materials -7/Factory -7/Waste -7/Factory -7/Lower Caves -7/Lower Caves -7/Data Miner -6/Proximity Caves -6/Factory -6/Lower Caves -6/Lower Caves -6/Zion -5/Proximity Caves -5/Factory (discovered 6 exits: Fac x4 / *Upp x2) -5/Upper Caves -5/Upper Caves (discovered 2 exits: *Fac / *War) -5/Warlord -4/Proximity Caves -4/Factory (discovered 2 exits: *Ext x2) -4/Extension History --------- Turn | Location | Event 13 | -11/Scrapyard | Discovered new exit (range 16) 113 | -11/Scrapyard | Entered Materials 316 | -10/Materials | Build established: Mutant 500 | -10/Materials | Identified exit to Mines 877 | -10/Materials | Discovered new exit (range 7) 1399 | -10/Materials | Entered another Materials area 1399 | -9/Materials | Evolved 2 slots: Propulsion x1, Utility x1 1553 | -9/Materials | Repaired Seismic Detector 1730 | -9/Materials | Discovered new exit (range 3) 1943 | -9/Materials | Repaired Lgt. Treads 2504 | -9/Materials | Entered another Materials area 2504 | -8/Materials | Evolved 2 slots: Propulsion x1, Weapon x1 2812 | -8/Materials | Build established: Skirmisher 3937 | -8/Materials | Discovered new exit (range 15) 4306 | -8/Materials | Build established: Scavenger-Skirmisher 4488 | -8/Materials | Entered Factory 4488 | -7/Factory | Accompanied by 1 ally 4488 | -7/Factory | Evolved 2 slots: Propulsion x1, Weapon x1 5313 | -7/Factory | Lost 3 parts (2n1w) 5827 | -7/Factory | System corruption reached 10% 5986 | -7/Factory | Sucked down chute 5986 | -7/Factory | Entered Waste 5987 | -7/Waste | Joined by Warlord forces that had cleared the area 6582 | -7/Waste | Discovered new exit (range 13) 6700 | -7/Waste | Entered Factory 6700 | -7/Factory | Accompanied by 20 allies 6868 | -7/Factory | Discovered new exit (range 16) 6943 | -7/Factory | Entered Lower Caves 6943 | -7/Lower Caves | Accompanied by 17 allies 6960 | -7/Lower Caves | Learned 4 Factory zone layouts 6989 | -7/Lower Caves | Lost 3 allies 7187 | -7/Lower Caves | Attracted the attention of an 0b10 checkpoint 7754 | -7/Lower Caves | Learned Factory garrison access intel 7754 | -7/Lower Caves | Learned Research garrison access intel 7754 | -7/Lower Caves | Learned Extension garrison access intel 9161 | -7/Lower Caves | Discovered new exit (range 8) 9540 | -7/Lower Caves | Entered another Lower Caves area 9540 | -7/Lower Caves | Accompanied by 15 allies 10480 | -7/Lower Caves | Learned Factory terminal intel 10613 | -7/Lower Caves | Spotted B-75 Beast 10621 | -7/Lower Caves | Allies destroyed B-75 Beast 10640 | -7/Lower Caves | Lost 3 allies 10810 | -7/Lower Caves | Lost 3 allies 11389 | -7/Lower Caves | Discovered new exit (range 6) 11425 | -7/Lower Caves | Entered Data Miner 11425 | -7/Data Miner | Accompanied by 5 allies 11425 | -7/Data Miner | Discovered new exit (range 6) 11456 | -7/Data Miner | Met Data Miner 11502 | -7/Data Miner | Learned location of Section 7 (-2) 11502 | -7/Data Miner | Acquired the access code to Warlord's prototype stash 11518 | -7/Data Miner | Received God Mode back door access code from Data Miner 11555 | -7/Data Miner | Entered Proximity Caves 11555 | -6/Proximity Caves | Accompanied by 5 allies 11557 | -6/Proximity Caves | Spotter reported a threat 11558 | -6/Proximity Caves | Spotter reported a threat 11611 | -6/Proximity Caves | Spotter reported a threat 11785 | -6/Proximity Caves | Spotter reported a threat 11921 | -6/Proximity Caves | Spotter reported a threat 11996 | -6/Proximity Caves | Learned Factory stockpile data 12032 | -6/Proximity Caves | Core integrity fell below 50% 12042 | -6/Proximity Caves | Escorted by Enhanced Grunt 12049 | -6/Proximity Caves | Discovered new exit (range 12) 12073 | -6/Proximity Caves | Core integrity fell below 20% 12112 | -6/Proximity Caves | Lost 7 parts (3n4w) 12211 | -6/Proximity Caves | Entered Factory 12211 | -6/Factory | Accompanied by 3 allies 12211 | -6/Factory | Evolved 2 slots: Propulsion x1, Utility x1 12214 | -6/Factory | Loaded intel: 26 terminal locations 12215 | -6/Factory | Loaded intel: 4 garrison access locations 12561 | -6/Factory | Search patrols dispatched 12741 | -6/Factory | System corruption reached 10% 12911 | -6/Factory | Search patrols dispatched 13261 | -6/Factory | Search patrols dispatched 13611 | -6/Factory | First assault squad dispatched 13708 | -6/Factory | Assembled infested ambush trap array 13755 | -6/Factory | Lost 6 parts (1p3n2u) 13802 | -6/Factory | Lost 3 allies 14013 | -6/Factory | Lost 9 parts (1p5n3w) 14028 | -6/Factory | Core integrity fell below 50% 14056 | -6/Factory | Lost 10 parts (2p4u4w) 14143 | -6/Factory | Incoming investigation squad redirected 14197 | -6/Factory | Fabricated Biomechanical Wings (x1) 14366 | -6/Factory | Discovered new exit (range 3) 14367 | -6/Factory | Identified exit to Lower Caves 14369 | -6/Factory | Entered Lower Caves 14372 | -6/Lower Caves | Core integrity fell below 20% 14392 | -6/Lower Caves | Encountered a Warlord checkpoint 14446 | -6/Lower Caves | Discovered new exit (range 14) 14503 | -6/Lower Caves | Identified exit to Lower Caves 14505 | -6/Lower Caves | Entered another Lower Caves area 14530 | -6/Lower Caves | Learned 8 Factory zone layouts 14634 | -6/Lower Caves | Build established: Mutant 14691 | -6/Lower Caves | Learned Factory emergency access door positions 14720 | -6/Lower Caves | Attracted the attention of an 0b10 outpost 14724 | -6/Lower Caves | Learned 12 Factory zone layouts 14746 | -6/Lower Caves | Discovered new exit (range 8) 14747 | -6/Lower Caves | Identified exit to Zion 14747 | -6/Lower Caves | Entered Zion 14759 | -6/Zion | Gained Derelict followers 14774 | -6/Zion | Discovered new exit (range 9) 14777 | -6/Zion | Identified exit to Proximity Caves 14799 | -6/Zion | System corruption cleaned by Quarantine Array 14838 | -6/Zion | Found CR-A16's Pointy Stick 14890 | -6/Zion | Learned location of 1 exit from Factory 15012 | -6/Zion | Received a hallucinogenic algorithm 15389 | -6/Zion | Build established: Derelict-Mutant 15621 | -6/Zion | Entered Proximity Caves 15621 | -5/Proximity Caves | Accompanied by 5 allies 15817 | -5/Proximity Caves | Lost 6 allies 15974 | -5/Proximity Caves | Learned Factory terminal intel 16027 | -5/Proximity Caves | Learned Factory emergency access door positions 16067 | -5/Proximity Caves | Learned 12 Factory zone layouts 16098 | -5/Proximity Caves | Spotted B-75 Beast 16185 | -5/Proximity Caves | Discovered new exit (range 5) 16186 | -5/Proximity Caves | Entered Factory 16186 | -5/Factory | Evolved 2 slots: Utility x2 16187 | -5/Factory | Identified exit to Upper Caves 16188 | -5/Factory | Identified exit to Factory 16190 | -5/Factory | Loaded intel: 25 terminal locations 16252 | -5/Factory | Build established: Derelict-Sprinter 16265 | -5/Factory | Entered Upper Caves 16280 | -5/Upper Caves | Encountered a Warlord checkpoint 16283 | -5/Upper Caves | Learned Factory stockpile data 16324 | -5/Upper Caves | Learned location of Armory (-3) 16333 | -5/Upper Caves | Identified exit to Upper Caves 16396 | -5/Upper Caves | Entered another Upper Caves area 16404 | -5/Upper Caves | Discovered exit to Factory (range 17) 16490 | -5/Upper Caves | Encountered a Warlord checkpoint 16518 | -5/Upper Caves | Attracted the attention of an 0b10 checkpoint 16526 | -5/Upper Caves | Discovered new exit (range 3) 16527 | -5/Upper Caves | Learned Factory emergency access door positions 16530 | -5/Upper Caves | Identified exit to Warlord 16563 | -5/Upper Caves | Entered Warlord 16744 | -5/Warlord | Met Warlord 16751 | -5/Warlord | Warlord's base attacked by MAIN.C 16768 | -5/Warlord | Opened Warlord's prototype stash 16773 | -5/Warlord | Found Prototype Processor 16773 | -5/Warlord | Identified Exp. Target Analyzer 16778 | -5/Warlord | Found Prototype Device 16778 | -5/Warlord | Identified Thermal Barrier 16787 | -5/Warlord | Found Prototype Reactor 16956 | -5/Warlord | Warlord forces counterattacked 17016 | -5/Warlord | Discovered new exit (range 15) 17018 | -5/Warlord | Identified exit to Proximity Caves 17031 | -5/Warlord | Lost 8 allies 17064 | -5/Warlord | Entered Proximity Caves 17064 | -4/Proximity Caves | Accompanied by 1 ally 17068 | -4/Proximity Caves | Spotter reported a threat 17079 | -4/Proximity Caves | Learned Research stockpile data 17142 | -4/Proximity Caves | Attracted the attention of an 0b10 checkpoint 17154 | -4/Proximity Caves | Discovered exit to Factory (range 14) 17168 | -4/Proximity Caves | Entered Factory 17168 | -4/Factory | Evolved 2 slots: Power x1, Utility x1 17169 | -4/Factory | Identified exit to Extension 17172 | -4/Factory | Identified Vortex Chain Reactor 17358 | -4/Factory | Crushed by falling debris 17389 | -4/Factory | Lost 4 parts (2p1n1u) 17408 | -4/Factory | Discovered exit to Extension (range 6) 17410 | -4/Factory | Entered Extension 17482 | -4/Extension | Spotted B-86 Titan 17553 | -4/Extension | Crushed by falling debris 17553 | -4/Extension | System corruption reached 10% 17583 | -4/Extension | Spotted B-86 Titan 17584 | -4/Extension | Lost 3 parts (1p1n1w) 17654 | -4/Extension | Lost 6 parts (2p2n2u) 17818 | -4/Extension | Core integrity fell below 50% 17867 | -4/Extension | Core integrity fell below 20% 17899 | -4/Extension | Lost 5 parts (3u2w) 17922 | -4/Extension | Rescued a captive Derelict 17951 | -4/Extension | Destroyed by Y-64 Sentinel with Wave Gun Last Messages --------------- 17925_ Penetrated by Slug. 17927_ Slug penetrates Terminal. 17927_ Terminal disabled. 17928_ Acquired Field Propulsion Array. 17930_ Penetrated by Slug. 17930_ Critical hit (Destroy). 17930_ Electron Diverter destroyed. 17932_ NX-FN9(g) suffers critical hit (Burn). 17935_ System corrupted: Matter fused (-10). 17936_ Attempting to rewire 15-1EC(g). 17941_ NX-FN9(g) suffers critical hit (Burn). 17941_ NX-FN9(g) destroyed. 17942_ Attempting to rewire 15-1EC(g). 17945_ Penetrated by Slug. 17946_ G-67 Veteran springs to life. 17947_ Acquired Neutrino Core. 17949_ Dropped Neutrino Core. 17951_ Connecting with Terminal... 17951_ ALERT: Suspicious activity at Terminal E011. Dispatching Investigation squad. Map ----- +----------------------------------------------------+ | | | | | | | | | | | | | | | | | | | | | | | | | | | | | ?????????????????????????????????????????????????? | | ?????????##??????????????????????????????????????? | | ???????### ###???????????????????????????????????? | | ####???# !! #???????????????????????????????????? | | #?### !! ####????????????????????????????????? | | ## #?#"" !! """#????????????????????????????????? | | ?# #?#"T T"#????????????????????????????????? | | ?# #?#"" " " """#????????????????????????????????? | | ?# #?### " " ####??????####??????????????????????? | | ## ##??# #?#########T"#??????????????????????? | | # ######+##### * ## "####???????????????????? | | =[ Y Y ; ; @ #???????????????????? | | # *%! ##### glbg### #???????????????????? | | ####= #???# == #?# #???????????????????? | | ???# #???# = #?# #???????????????????? | | #### #???# = #?#o #???????????????????? | | #???####/###?# #???????????????????? | | ##T# ?? #???????????????????? | | ?################## #???????????????????? | | ??????????????????# ???? #???????????????????? | | ??????????????????# ???? #???????????????????? | | ##????????????????# ???? #???????????????????? | | ###???????????????# ????#+## #???????????????????? | | ####??????????????# ???????? #???????????????????? | | ####?????????????##???????? #???????????????????? | | ###??????????????????????? #???????????????????? | | ##??????????????????????? #???????????????????? | | ###????????????????????????#???????????????????? | | ##????????????????????????????????????????????? | | ##????????????????????????????????????????????? | | ###???????????????????????????######???????????? | | ####???????????????????????????? ## ##???????????? | | #####?????????????????????????? "???????????? | | ######???????????????????????? ???????????? | | ##??????????????????????? ???????????? | | ### ###################### ???????????? | +----------------------------------------------------+ Best States ------------- Heat Dissipation 75 Energy Generation 35 Energy Capacity 800 Matter Stores 300 Matter Capacity 300 Sight Range 22 Terrain Scan Range 16 Terrain Scan Density 210 Jamming Range 14 Additional Mass Support 9 Armor Coverage 300 Resistance: TH 50 Resistance: EM 25 Power Shielding 66 Utility Shielding 33 Weapon Shielding 66 Phase Shifting 10 Evasion (%) 77 Core Analysis 6 Recoil Reduction 6 Energy Filtering 30 Offensive Hacking 10 Defensive Hacking 30 Item Schematics ----------------- Imp. Ion Engine | -8/Materials | Scanalyzed Imp. Datajack | -8/Materials | Scanalyzed Grenade Launcher | -8/Materials | Scanalyzed Rocket Launcher | -8/Materials | Scanalyzed Lgt. Treads | -8/Materials | Scanalyzed Combat Drone Bay | -7/Data Miner | Free Lgt. Regenerative Plating | -7/Data Miner | Free Biomechanical Wings | -7/Data Miner | Free Gravity Neutralizer | -7/Data Miner | Free Force Rifle | -7/Data Miner | Free Field Propulsion Drive | -7/Data Miner | Free Mni. Drone Bay | -7/Data Miner | Free Imp. Plasma Cutter | -7/Data Miner | Free Imp. Trap Scanner | -7/Data Miner | Free Imp. Focal Shield | -7/Data Miner | Free Impulse Thruster | -7/Data Miner | Free Mak. Terrain Scanner | -6/Zion | Archive Remote Shield | -6/Zion | Archive Lrn. Proton Cannon | -6/Zion | Archive Matter Compressor | -6/Zion | Archive Imp. Remote Datajack | -6/Zion | Archive Angular Momentum Engine | -6/Zion | Archive Imp. Heavy Armor Plating | -6/Zion | Archive HERF Cannon | -6/Zion | Archive Thermal Shield | -6/Zion | Archive Hyp. Coil Gun | -6/Zion | Archive Imp. Recalibrator | -6/Zion | Archive Thermic Laser | -6/Zion | Archive Robot Schematics ------------------ S-27 Virus | -7/Data Miner | Free H-66 Slayer | -7/Data Miner | Free L-41 Fighter | -7/Data Miner | Free B-48 Gladiator | -7/Data Miner | Free R-10 Processor | -7/Data Miner | Free Y-54 Guardian | -7/Data Miner | Free A-15 Conveyor | -6/Zion | Archive A-02 Transporter | -6/Zion | Archive Fabricated ------------ Biomechanical Wings | x1 | -6/Factory Alien Tech Used ----------------- None Achievements -------------- Brute Force Charge!!! It Was An Accident, I Swear Reappropriation Challenges ------------ None Game ------ Seed ActiveStealthSource Manual? 0 Play Time 04:31:00 Cumulative 41.8 hours Start 2024.06.16 @ 17:56:23 End 2024.06.18 @ 12:35:01 Sessions 5 Manual Loads 0 Difficulty Rogue Special Mode None Game No. 37 Rogue 37 Adventurer 0 Explorer 0 Win Type - Total 0 Types 0/0/0/0/0/0/0/0/0 Lore% 31 Gallery% 37 Achievement% 32 Wizard Run 0 Options --------- Layout 1 ASCII 0 Keyboard 1 Movement Arrows Keybinds 0 Fullscreen 2 Font 24/Smallcaps Map View 50x35 Zoom Use 0% Tactical HUD 1 Map Filters NONE Filters NONE Steam 1 RUN: 64c178b3-19ed-48aa-aec3-6fae7d950abc